fUSD/lending_fUSD_20250214
["ID","MTS","AMOUNT","RATE_DAILY","PERIOD"]
[353102845,1739562681364,-2088.88,0.00013863,2]
[353102846,1739562681373,-1341.64,0.00013863,2]
[353102847,1739562681382,-500.0,0.00013863,2]
[353102848,1739562681392,-2016.81,0.00013863,2]
[353102849,1739562681401,-399.85136825,0.00013863,2]
[353102850,1739562681411,-500.0,0.00013863,2]
[353102851,1739562681421,-598.626061,0.00013863,2]
[353102852,1739562681431,-150.0,0.00013877,2]
[353102853,1739562681440,-540.0,0.00013889,2]
[353102854,1739562681449,-1563.0,0.00013889,2]
[353102855,1739562681459,-367.0,0.000139,2]
[353102856,1739562681468,-747.0,0.000139,2]
[353102857,1739562681478,-231.0,0.000139,2]
[353102858,1739562681487,-150.0,0.00013906,2]
[353102859,1739562681498,-540.0,0.00013916,2]
[353102860,1739562681507,-1563.0,0.00013916,2]
[353102861,1739562681517,-150.0,0.00013931,2]
[353102862,1739562681528,-1112.51675988,0.00013935,2]
[353102863,1739562681538,-540.0,0.00013944,2]
[353102864,1739562681550,-1563.0,0.00013944,2]
[353102865,1739562681559,-500.0,0.00013944,2]
[353102866,1739562681587,-300.0,0.00013944,2]
[353102867,1739562681606,-151.0,0.00013944,2]
[353102868,1739562681631,-223.363159,0.00013944,2]
[353102869,1739562681651,-666.0,0.00013944,2]
[353102870,1739562681672,-300.0,0.00013944,2]
[353102871,1739562681695,-531.3,0.00013944,2]
[353102872,1739562681717,-531.3,0.00013944,2]
[353102873,1739562681739,-531.3,0.00013944,2]
[353102874,1739562681759,-531.3,0.00013944,2]
[353102875,1739562681782,-531.3,0.00013944,2]
[353102876,1739562681798,-531.46743483,0.00013944,2]
[353102877,1739562681820,-1642.851728,0.00013945,2]
[353102878,1739562681836,-502.36164623,0.00013945,2]
[353102879,1739562681857,-505.02392902,0.00013945,2]
[353102880,1739562681874,-422.75881858,0.00013945,2]
[353102881,1739562681893,-520.4777281,0.00013945,2]
[353102882,1739562681910,-513.32,0.00013945,2]
[353102883,1739562681930,-778.74,0.00013945,2]
[353102884,1739562681948,-500.0,0.00013945,2]
[353102885,1739562681967,-500.0,0.00013945,2]
[353102886,1739562681985,-676.39,0.00013945,2]
[353102887,1739562682003,-500.0,0.00013945,2]
[353102888,1739562682021,-500.0,0.00013945,2]
[353102889,1739562682039,-576.1,0.00013945,2]
[353102890,1739562682058,-441.8776214,0.00013945,2]
[353102891,1739562682076,-500.0,0.00013945,2]
[353102892,1739562682094,-500.0,0.00013945,2]
[353102893,1739562682112,-500.0,0.00013945,2]
[353102894,1739562682129,-500.0,0.00013945,2]
[353102895,1739562682148,-500.0,0.00013945,2]
[353102896,1739562682166,-500.0,0.00013945,2]
[353102897,1739562682183,-506.77902961,0.00013945,2]
[353102898,1739562682202,-500.0,0.00013945,2]
[353102899,1739562682219,-500.0,0.00013945,2]
[353102900,1739562682237,-500.0,0.00013945,2]
[353102901,1739562682255,-500.0,0.00013945,2]
[353102902,1739562682272,-631.01,0.00013945,2]
[353102903,1739562682291,-562.89,0.00013945,2]
[353102904,1739562682309,-500.0,0.00013945,2]
[353102905,1739562682328,-500.0,0.00013945,2]
[353102906,1739562682346,-500.0,0.00013945,2]
[353102907,1739562682363,-500.0,0.00013945,2]
[353102908,1739562682382,-500.0,0.00013945,2]
[353102909,1739562682400,-535.69,0.00013945,2]
[353102910,1739562682417,-500.0,0.00013945,2]
[353102911,1739562682433,-500.0,0.00013945,2]
[353102912,1739562682450,-500.0,0.00013945,2]
[353102913,1739562682468,-505.96039843,0.00013945,2]
[353102914,1739562682486,-500.0,0.00013945,2]
[353102915,1739562682504,-500.0,0.00013945,2]
[353102916,1739562682523,-500.0,0.00013945,2]
[353102917,1739562682541,-500.0,0.00013945,2]
[353102918,1739562682561,-412.11937132,0.00013945,2]
[353102919,1739562682577,-500.0,0.00013945,2]
[353102920,1739562682595,-500.0,0.00013945,2]
[353102921,1739562682622,-500.0,0.00013945,2]
[353102922,1739562682638,-500.0,0.00013945,2]
[353102923,1739562682657,-500.0,0.00013945,2]
[353102924,1739562682676,-500.0,0.00013945,2]
[353102925,1739562682694,-549.87728519,0.00013945,2]
[353102926,1739562682713,-1068.82,0.00013945,2]
[353102927,1739562682731,-500.0,0.00013945,2]
[353102928,1739562682749,-500.0,0.00013945,2]
[353102929,1739562682767,-950.13,0.00013945,2]
[353102930,1739562682786,-500.0,0.00013945,2]
[353102931,1739562682804,-500.0,0.00013945,2]
[353102932,1739562682822,-500.0,0.00013945,2]
[353102933,1739562682840,-500.0,0.00013945,2]
[353102934,1739562682859,-500.0,0.00013945,2]
[353102935,1739562682878,-500.0,0.00013945,2]
[353102936,1739562682895,-500.0,0.00013945,2]
[353102937,1739562682915,-747.04,0.00013945,2]
[353102938,1739562682934,-500.0,0.00013945,2]
[353102939,1739562682952,-500.0,0.00013945,2]
[353102940,1739562682973,-500.0,0.00013945,2]
[353102941,1739562682992,-500.0,0.00013945,2]
[353102942,1739562683020,-500.0,0.00013945,2]
[353102943,1739562683039,-500.0,0.00013945,2]
[353102944,1739562683057,-500.0,0.00013945,2]
[353102945,1739562683075,-904.73,0.00013945,2]
[353102946,1739562683092,-500.0,0.00013945,2]
[353102947,1739562683112,-601.6,0.00013945,2]
[353102948,1739562683130,-500.0,0.00013945,2]
[353102949,1739562683148,-995.88,0.00013945,2]
[353102950,1739562683167,-229.5006059,0.00013945,2]
[353102951,1739562683185,-500.0,0.00013945,2]
[353102952,1739562683204,-500.0,0.00013945,2]
[353102953,1739562683222,-663.94,0.00013945,2]
[353102954,1739562683240,-500.0,0.00013945,2]
[353102955,1739562683258,-500.0,0.00013945,2]
[353102956,1739562683276,-865.63,0.00013945,2]
[353102957,1739562683293,-526.77,0.00013945,2]
[353102958,1739562683312,-500.0,0.00013945,2]
[353102959,1739562683330,-515.84914668,0.00013945,2]
[353102960,1739562683348,-500.0,0.00013945,2]
[353102961,1739562683365,-753.7,0.00013945,2]
[353102962,1739562683383,-500.0,0.00013945,2]
[353102963,1739562683401,-500.0,0.00013945,2]
[353102964,1739562683660,-500.0,0.00013945,2]
[353102965,1739562683673,-500.0,0.00013945,2]
[353102966,1739562683683,-151.0,0.00013945,2]
[353102967,1739562683693,-151.0,0.00013945,2]
[353102968,1739562683702,-360.5987835,0.00013945,2]
[353102969,1739562683712,-790.03,0.00013945,2]
[353102970,1739562683723,-500.0,0.00013945,2]
[353102971,1739562683732,-973.85,0.00013945,2]
[353102972,1739562683742,-500.0,0.00013945,2]
[353102973,1739562683752,-500.0,0.00013945,2]
[353102974,1739562683762,-929.64,0.00013945,2]
[353102975,1739562683771,-500.0,0.00013945,2]
[353102976,1739562683781,-500.0,0.00013945,2]
[353102977,1739562683790,-500.0,0.00013945,2]
[353102978,1739562683799,-500.0,0.00013945,2]
[353102979,1739562683809,-500.0,0.00013945,2]
[353102980,1739562683819,-500.0,0.00013945,2]
[353102981,1739562683829,-536.35,0.00013945,2]
[353102982,1739562683838,-500.0,0.00013945,2]
[353102983,1739562683847,-500.0,0.00013945,2]
[353102984,1739562683857,-526.67,0.00013945,2]
[353102985,1739562683867,-500.0,0.00013945,2]
[353102986,1739562683877,-500.0,0.00013945,2]
[353102987,1739562683886,-500.0,0.00013945,2]
[353102988,1739562683896,-500.0,0.00013945,2]
[353102989,1739562683906,-500.0,0.00013945,2]
[353102990,1739562683916,-500.0,0.00013945,2]
[353102991,1739562683928,-500.0,0.00013945,2]
[353102992,1739562683938,-151.51593234,0.00013945,2]
[353102993,1739562683948,-500.0,0.00013945,2]
[353102994,1739562683957,-815.87,0.00013945,2]
[353102995,1739562683969,-500.0,0.00013945,2]
[353102996,1739562683982,-500.0,0.00013945,2]
[353102997,1739562683992,-500.0,0.00013945,2]
[353102998,1739562684003,-500.0,0.00013945,2]
[353102999,1739562684013,-567.12,0.00013945,2]
[353103000,1739562684023,-500.0,0.00013945,2]
[353103001,1739562684032,-513.06573866,0.00013945,2]
[353103002,1739562684042,-787.02,0.00013945,2]
[353103003,1739562684052,-500.0,0.00013945,2]
[353103004,1739562684061,-500.0,0.00013945,2]
[353103005,1739562684071,-500.0,0.00013945,2]
[353103006,1739562684081,-500.0,0.00013945,2]
[353103007,1739562684090,-500.0,0.00013945,2]
[353103008,1739562684100,-831.62,0.00013945,2]
[353103009,1739562684109,-892.61,0.00013945,2]
[353103010,1739562684119,-581.27,0.00013945,2]
[353103011,1739562684128,-500.0,0.00013945,2]
[353103012,1739562684138,-510.97,0.00013945,2]
[353103013,1739562684147,-500.0,0.00013945,2]
[353103014,1739562684158,-835.66,0.00013945,2]
[353103015,1739562684167,-559.17,0.00013945,2]
[353103016,1739562684178,-500.0,0.00013945,2]
[353103017,1739562684187,-500.0,0.00013945,2]
[353103018,1739562684197,-542.68,0.00013945,2]
[353103019,1739562684206,-1357.4,0.00013945,2]
[353103020,1739562684215,-500.0,0.00013945,2]
[353103021,1739562684225,-500.0,0.00013945,2]
[353103022,1739562684235,-504.37113812,0.00013945,2]
[353103023,1739562684244,-500.0,0.00013945,2]
[353103024,1739562684254,-500.0,0.00013945,2]
[353103025,1739562684263,-586.85,0.00013945,2]
[353103026,1739562684272,-500.0,0.00013945,2]
[353103027,1739562684282,-500.0,0.00013945,2]
[353103028,1739562684292,-500.0,0.00013945,2]
[353103029,1739562684301,-527.02212451,0.00013945,2]
[353103030,1739562684311,-1191.83,0.00013945,2]
[353103031,1739562684320,-500.0,0.00013945,2]
[353103032,1739562684329,-500.0,0.00013945,2]
[353103033,1739562684339,-500.0,0.00013945,2]
[353103034,1739562684348,-500.0,0.00013945,2]
[353103035,1739562684358,-507.68410988,0.00013945,2]
[353103036,1739562684367,-755.11,0.00013945,2]
[353103037,1739562684376,-1418.15,0.00013945,2]
[353103038,1739562684385,-500.0,0.00013945,2]
[353103039,1739562684395,-505.430384,0.00013945,2]
[353103040,1739562684405,-504.61792146,0.00013945,2]
[353103041,1739562684415,-811.57,0.00013945,2]
[353103042,1739562684425,-440.45944634,0.00013945,2]
[353103043,1739562684434,-500.0,0.00013945,2]
[353103044,1739562684443,-1200.0,0.00013945,2]
[353103045,1739562684454,-500.0,0.00013945,2]
[353103046,1739562684463,-500.0,0.00013945,2]
[353103047,1739562684473,-290.46483086,0.00013945,2]
[353103048,1739562684483,-500.0,0.00013945,2]
[353103049,1739562684492,-500.0,0.00013945,2]
[353103050,1739562684502,-500.0,0.00013945,2]
[353103051,1739562684513,-1883.85,0.00013945,2]
[353103052,1739562684523,-523.09865468,0.00013945,2]
[353103053,1739562684534,-500.0,0.00013945,2]
[353103054,1739562684544,-500.0,0.00013945,2]
[353103055,1739562684554,-500.0,0.00013945,2]
[353103056,1739562684564,-500.0,0.00013945,2]
[353103057,1739562684574,-502.08,0.00013945,2]
[353103058,1739562684583,-500.0,0.00013945,2]
[353103059,1739562684593,-500.0,0.00013945,2]
[353103060,1739562684602,-506.49233336,0.00013945,2]
[353103061,1739562684612,-200.820466,0.00013945,2]
[353103062,1739562684621,-200.820466,0.00013945,2]
[353103063,1739562684633,-500.0,0.00013945,2]
[353103064,1739562684644,-500.0,0.00013945,2]
[353103065,1739562684654,-500.0,0.00013945,2]
[353103066,1739562684664,-589.65,0.00013945,2]
[353103067,1739562684674,-506.67093426,0.00013945,2]
[353103068,1739562684684,-200.820466,0.00013945,2]
[353103069,1739562684694,-200.820456,0.00013945,2]
[353103070,1739562684704,-1326.16,0.00013945,2]
[353103071,1739562684714,-516.77,0.00013945,2]
[353103072,1739562684724,-500.0,0.00013945,2]
[353103073,1739562684734,-500.0,0.00013945,2]
[353103074,1739562684744,-500.0,0.00013945,2]
[353103075,1739562684755,-1011.78,0.00013945,2]
[353103076,1739562684764,-500.0,0.00013945,2]
[353103077,1739562684774,-500.0,0.00013945,2]
[353103078,1739562684784,-1140.41,0.00013945,2]
[353103079,1739562684794,-500.0,0.00013945,2]
[353103080,1739562684804,-500.0,0.00013945,2]
[353103081,1739562684813,-500.0,0.00013945,2]
[353103082,1739562684823,-500.0,0.00013945,2]
[353103083,1739562684832,-1122.99,0.00013945,2]
[353103084,1739562684842,-500.0,0.00013945,2]
[353103085,1739562684851,-500.0,0.00013945,2]
[353103086,1739562684861,-500.0,0.00013945,2]
[353103087,1739562684872,-500.0,0.00013945,2]
[353103088,1739562684882,-832.75,0.00013945,2]
[353103089,1739562684892,-500.0,0.00013945,2]
[353103090,1739562684902,-500.0,0.00013945,2]
[353103091,1739562684913,-500.0,0.00013945,2]
[353103092,1739562684924,-1221.57,0.00013945,2]
[353103093,1739562684935,-792.46,0.00013945,2]
[353103094,1739562684945,-1340.02,0.00013945,2]
[353103095,1739562684954,-1338.56,0.00013945,2]
[353103096,1739562684966,-500.0,0.00013945,2]
[353103097,1739562684977,-1876.33,0.00013945,2]
[353103098,1739562684986,-500.0,0.00013945,2]
[353103099,1739562684997,-1174.59,0.00013945,2]
[353103100,1739562685007,-581.82,0.00013945,2]
[353103101,1739562685016,-726.0,0.00013945,2]
[353103102,1739562685026,-500.0,0.00013945,2]
[353103103,1739562685036,-1106.3,0.00013945,2]
[353103104,1739562685046,-500.0,0.00013945,2]
[353103105,1739562685056,-500.0,0.00013945,2]
[353103106,1739562685066,-500.0,0.00013945,2]
[353103107,1739562685076,-840.02,0.00013945,2]
[353103108,1739562685086,-669.29,0.00013945,2]
[353103109,1739562685097,-500.0,0.00013945,2]
[353103110,1739562685106,-500.0,0.00013945,2]
[353103111,1739562685116,-500.0,0.00013945,2]
[353103112,1739562685126,-894.93,0.00013945,2]
[353103113,1739562685136,-500.0,0.00013945,2]
[353103114,1739562685145,-151.0,0.00013945,2]
[353103115,1739562685155,-1721.49,0.00013945,2]
[353103116,1739562685165,-151.0,0.00013945,2]
[353103117,1739562685175,-500.0,0.00013945,2]
[353103118,1739562685185,-907.54,0.00013945,2]
[353103119,1739562685196,-917.22,0.00013945,2]
[353103120,1739562685205,-1464.55,0.00013945,2]
[353103121,1739562685215,-500.0,0.00013945,2]
[353103122,1739562685226,-776.32,0.00013945,2]
[353103123,1739562685236,-500.0,0.00013945,2]
[353103124,1739562685245,-846.98,0.00013945,2]
[353103125,1739562685254,-515.46102303,0.00013945,2]
[353103126,1739562685264,-1634.29,0.00013945,2]
[353103127,1739562685274,-1469.68,0.00013945,2]
[353103128,1739562685284,-500.0,0.00013945,2]
[353103129,1739562685294,-673.64,0.00013945,2]
[353103130,1739562685304,-507.61405233,0.00013945,2]
[353103131,1739562685314,-500.0,0.00013945,2]
[353103132,1739562685324,-617.11,0.00013945,2]
[353103133,1739562685334,-508.28667649,0.00013945,2]
[353103134,1739562685344,-2522.39,0.00013945,2]
[353103135,1739562685355,-500.0,0.00013945,2]
[353103136,1739562685364,-500.0,0.00013945,2]
[353103137,1739562685374,-500.0,0.00013945,2]
[353103138,1739562685384,-500.0,0.00013945,2]
[353103139,1739562685394,-2518.18,0.00013945,2]
[353103140,1739562685404,-506.12604669,0.00013945,2]
[353103141,1739562685415,-927.88,0.00013945,2]
[353103142,1739562685425,-331.09061863,0.00013945,2]
[353103143,1739562685435,-2061.04,0.00013945,2]
[353103144,1739562685445,-500.0,0.00013945,2]
[353103145,1739562685455,-899.7,0.00013945,2]
[353103146,1739562685466,-3177.51,0.00013945,2]
[353103147,1739562685475,-750.88,0.00013945,2]
[353103148,1739562685485,-504.88082663,0.00013945,2]
[353103149,1739562685496,-500.0,0.00013945,2]
[353103150,1739562685507,-500.0,0.00013945,2]
[353103151,1739562685518,-946.5,0.00013945,2]
[353103152,1739562685528,-500.0,0.00013945,2]
[353103153,1739562685538,-944.68,0.00013945,2]
[353103154,1739562685548,-500.0,0.00013945,2]
[353103155,1739562685558,-689.47,0.00013945,2]
[353103156,1739562685567,-1146.28,0.00013945,2]
[353103157,1739562685576,-509.46261621,0.00013945,2]
[353103158,1739562685586,-500.0,0.00013945,2]
[353103159,1739562685596,-500.0,0.00013945,2]
[353103160,1739562685606,-500.0,0.00013945,2]
[353103161,1739562685616,-609.88,0.00013945,2]
[353103162,1739562685626,-500.0,0.00013945,2]
[353103163,1739562685636,-370.01634983,0.00013945,2]
[353103164,1739562685646,-831.68,0.00013945,2]
[353103165,1739562685656,-2346.44,0.00013945,2]
[353103166,1739562685667,-452.84130346,0.00013945,2]
[353103167,1739562685677,-500.0,0.00013945,2]
[353103168,1739562685687,-500.0,0.00013945,2]
[353103169,1739562685697,-670.21,0.00013945,2]
[353103170,1739562685707,-1050.3,0.00013945,2]
[353103171,1739562685718,-2668.09,0.00013945,2]
[353103172,1739562685728,-612.48,0.00013945,2]
[353103173,1739562685738,-759.26,0.00013945,2]
[353103174,1739562685748,-508.2170433,0.00013945,2]
[353103175,1739562685758,-500.0,0.00013945,2]
[353103176,1739562685768,-519.1,0.00013945,2]
[353103177,1739562685778,-541.17,0.00013945,2]
[353103178,1739562685789,-500.0,0.00013945,2]
[353103179,1739562685799,-622.95,0.00013945,2]
[353103180,1739562685809,-872.41,0.00013945,2]
[353103181,1739562685819,-590.06,0.00013945,2]
[353103182,1739562685829,-1511.18,0.00013945,2]
[353103183,1739562685839,-500.0,0.00013945,2]
[353103184,1739562685849,-500.0,0.00013945,2]
[353103185,1739562685859,-500.0,0.00013945,2]
[353103186,1739562685869,-1368.76,0.00013945,2]
[353103187,1739562685879,-1500.64,0.00013945,2]
[353103188,1739562686063,-995.11,0.00013945,2]
[353103189,1739562686077,-500.0,0.00013945,2]
[353103190,1739562686087,-1019.71,0.00013945,2]
[353103191,1739562686098,-500.0,0.00013945,2]
[353103192,1739562686109,-500.0,0.00013945,2]
[353103193,1739562686120,-1355.18,0.00013945,2]
[353103194,1739562686130,-500.0,0.00013945,2]
[353103195,1739562686140,-1610.54,0.00013945,2]
[353103196,1739562686151,-504.7316214,0.00013945,2]
[353103197,1739562686161,-777.08,0.00013945,2]
[353103198,1739562686170,-500.0,0.00013945,2]
[353103199,1739562686180,-574.37,0.00013945,2]
[353103200,1739562686191,-500.0,0.00013945,2]
[353103201,1739562686201,-509.31746052,0.00013945,2]
[353103202,1739562686210,-976.95,0.00013945,2]
[353103203,1739562686221,-500.0,0.00013945,2]
[353103204,1739562686233,-500.0,0.00013945,2]
[353103205,1739562686243,-500.0,0.00013945,2]
[353103206,1739562686253,-500.0,0.00013945,2]
[353103207,1739562686264,-500.0,0.00013945,2]
[353103208,1739562686274,-593.78,0.00013945,2]
[353103209,1739562686286,-500.0,0.00013945,2]
[353103210,1739562686295,-971.56,0.00013945,2]
[353103211,1739562686304,-500.0,0.00013945,2]
[353103212,1739562686314,-664.53,0.00013945,2]
[353103213,1739562686324,-500.0,0.00013945,2]
[353103214,1739562686334,-500.0,0.00013945,2]
[353103215,1739562686344,-500.0,0.00013945,2]
[353103216,1739562686354,-500.0,0.00013945,2]
[353103217,1739562686364,-500.0,0.00013945,2]
[353103218,1739562686375,-743.54,0.00013945,2]
[353103219,1739562686385,-500.0,0.00013945,2]
[353103220,1739562686395,-1428.05,0.00013945,2]
[353103221,1739562686405,-502.43165355,0.00013945,2]
[353103222,1739562686415,-500.0,0.00013945,2]
[353103223,1739562686424,-500.0,0.00013945,2]
[353103224,1739562686434,-500.0,0.00013945,2]
[353103225,1739562686444,-337.78407719,0.00013945,2]
[353103226,1739562686453,-500.0,0.00013945,2]
[353103227,1739562686463,-500.0,0.00013945,2]
[353103228,1739562686472,-1693.38,0.00013945,2]
[353103229,1739562686482,-868.98,0.00013945,2]
[353103230,1739562686492,-500.0,0.00013945,2]
[353103231,1739562686501,-500.0,0.00013945,2]
[353103232,1739562686512,-500.0,0.00013945,2]
[353103233,1739562686522,-500.0,0.00013945,2]
[353103234,1739562686532,-500.0,0.00013945,2]
[353103235,1739562686542,-500.0,0.00013945,2]
[353103236,1739562686552,-500.0,0.00013945,2]
[353103237,1739562686561,-500.0,0.00013945,2]
[353103238,1739562686572,-1157.32,0.00013945,2]
[353103239,1739562686582,-500.0,0.00013945,2]
[353103240,1739562686591,-500.0,0.00013945,2]
[353103241,1739562686601,-1308.91,0.00013945,2]
[353103242,1739562686611,-596.87641057,0.00013945,2]
[353103243,1739562686622,-500.0,0.00013945,2]
[353103244,1739562686632,-500.0,0.00013945,2]
[353103245,1739562686641,-434.82274119,0.00013945,2]
[353103246,1739562686652,-500.0,0.00013945,2]
[353103247,1739562686663,-500.0,0.00013945,2]
[353103248,1739562686674,-870.0,0.00013945,2]
[353103249,1739562686684,-771.51,0.00013945,2]
[353103250,1739562686694,-508.27,0.00013945,2]
[353103251,1739562686705,-801.88,0.00013945,2]
[353103252,1739562686716,-500.0,0.00013945,2]
[353103253,1739562686725,-1014.77,0.00013945,2]
[353103254,1739562686737,-500.0,0.00013945,2]
[353103255,1739562686747,-500.0,0.00013945,2]
[353103256,1739562686758,-1353.1,0.00013945,2]
[353103257,1739562686768,-925.95,0.00013945,2]
[353103258,1739562686778,-748.82,0.00013945,2]
[353103259,1739562686789,-705.11,0.00013945,2]
[353103260,1739562686799,-521.82,0.00013945,2]
[353103261,1739562686809,-1075.65,0.00013945,2]
[353103262,1739562686818,-1330.32,0.00013945,2]
[353103263,1739562686828,-500.0,0.00013945,2]
[353103264,1739562686838,-500.0,0.00013945,2]
[353103265,1739562686848,-823.85,0.00013945,2]
[353103266,1739562686857,-500.0,0.00013945,2]
[353103267,1739562686867,-503.16072706,0.00013945,2]
[353103268,1739562686878,-679.24,0.00013945,2]
[353103269,1739562686889,-602.48011455,0.00013945,2]
[353103270,1739562686899,-605.01,0.00013945,2]
[353103271,1739562686912,-500.0,0.00013945,2]
[353103272,1739562686922,-500.0,0.00013945,2]
[353103273,1739562686936,-1139.63,0.00013945,2]
[353103274,1739562686947,-855.34,0.00013945,2]
[353103275,1739562686958,-500.0,0.00013945,2]
[353103276,1739562686967,-646.14,0.00013945,2]
[353103277,1739562686979,-500.0,0.00013945,2]
[353103278,1739562686989,-500.0,0.00013945,2]
[353103279,1739562686999,-500.0,0.00013945,2]
[353103280,1739562687010,-500.0,0.00013945,2]
[353103281,1739562687020,-500.0,0.00013945,2]
[353103282,1739562687030,-500.0,0.00013945,2]
[353103283,1739562687040,-657.84,0.00013945,2]
[353103284,1739562687051,-563.26,0.00013945,2]
[353103285,1739562687061,-500.0,0.00013945,2]
[353103286,1739562687070,-883.37,0.00013945,2]
[353103287,1739562687080,-500.0,0.00013945,2]
[353103288,1739562687090,-500.0,0.00013945,2]
[353103289,1739562687100,-500.0,0.00013945,2]
[353103290,1739562687110,-500.0,0.00013945,2]
[353103291,1739562687120,-289.19567921,0.00013945,2]
[353103292,1739562687130,-1696.12,0.00013945,2]
[353103293,1739562687140,-1749.6,0.00013945,2]
[353103294,1739562687151,-500.0,0.00013945,2]
[353103295,1739562687162,-1098.61,0.00013945,2]
[353103296,1739562687172,-500.0,0.00013945,2]
[353103297,1739562687182,-507.82,0.00013945,2]
[353103298,1739562687191,-500.0,0.00013945,2]
[353103299,1739562687201,-389.123882,0.00013945,2]
[353103300,1739562687210,-1030.08,0.00013945,2]
[353103301,1739562687220,-568.66633213,0.00013945,2]
[353103302,1739562687231,-1239.86,0.00013945,2]
[353103303,1739562687240,-500.0,0.00013945,2]
[353103304,1739562687251,-806.18,0.00013945,2]
[353103305,1739562687262,-564.04,0.00013945,2]
[353103306,1739562687271,-500.0,0.00013945,2]
[353103307,1739562687281,-500.0,0.00013945,2]
[353103308,1739562687290,-500.0,0.00013945,2]
[353103309,1739562687299,-503.76829488,0.00013945,2]
[353103310,1739562687309,-500.0,0.00013945,2]
[353103311,1739562687319,-683.79,0.00013945,2]
[353103312,1739562687329,-500.0,0.00013945,2]
[353103313,1739562687338,-500.0,0.00013945,2]
[353103314,1739562687348,-706.12,0.00013945,2]
[353103315,1739562687357,-500.0,0.00013945,2]
[353103316,1739562687367,-897.05,0.00013945,2]
[353103317,1739562687377,-1669.07,0.00013945,2]
[353103318,1739562687387,-1508.12,0.00013945,2]
[353103319,1739562687396,-500.0,0.00013945,2]
[353103320,1739562687412,-500.0,0.00013945,2]
[353103321,1739562687422,-500.0,0.00013945,2]
[353103322,1739562687431,-500.0,0.00013945,2]
[353103323,1739562687441,-711.17,0.00013945,2]
[353103324,1739562687451,-500.0,0.00013945,2]
[353103325,1739562687461,-500.0,0.00013945,2]
[353103326,1739562687471,-586.91893801,0.00013945,2]
[353103327,1739562687480,-1736.71,0.00013945,2]
[353103328,1739562687491,-1534.42,0.00013945,2]
[353103329,1739562687500,-509.80192786,0.00013945,2]
[353103330,1739562687511,-863.93,0.00013945,2]
[353103331,1739562687521,-1043.93,0.00013945,2]
[353103332,1739562687531,-500.0,0.00013945,2]
[353103333,1739562687542,-500.0,0.00013945,2]
[353103334,1739562687552,-500.0,0.00013945,2]
[353103335,1739562687563,-500.0,0.00013945,2]
[353103336,1739562687573,-500.0,0.00013945,2]
[353103337,1739562687582,-500.0,0.00013945,2]
[353103338,1739562687592,-1176.07,0.00013945,2]
[353103339,1739562687601,-1588.84,0.00013945,2]
[353103340,1739562687611,-1112.48,0.00013945,2]
[353103341,1739562687620,-500.0,0.00013945,2]
[353103342,1739562687630,-500.0,0.00013945,2]
[353103343,1739562687639,-500.0,0.00013945,2]
[353103344,1739562687649,-500.0,0.00013945,2]